fUSD/lending_fUSD_20250322
["ID","MTS","AMOUNT","RATE_DAILY","PERIOD"]
[356522978,1742611834672,-500.0,0.00046575,120]
[356522979,1742611834682,-500.0,0.00046575,120]
[356522980,1742611834691,-500.0,0.00046575,120]
[356522981,1742611834700,-500.0,0.00046575,120]
[356522982,1742611834710,-238.207515,0.00046575,120]
[356522983,1742611834719,-500.0,0.00046575,120]
[356522984,1742611834728,-500.0,0.00046575,120]
[356522985,1742611834737,-500.0,0.00046575,120]
[356522986,1742611834747,-500.0,0.00046575,120]
[356522987,1742611834755,-500.0,0.00046575,120]
[356522988,1742611834764,-500.0,0.00046575,120]
[356522989,1742611834773,-500.0,0.00046575,120]
[356522990,1742611834783,-500.0,0.00046575,120]
[356522991,1742611834791,-500.0,0.00046575,120]
[356522992,1742611834801,-158.513571,0.00046575,120]
[356522993,1742611834810,-500.0,0.00046575,120]
[356522994,1742611834819,-500.0,0.00046575,120]
[356522995,1742611834828,-500.0,0.00046575,120]
[356522996,1742611834837,-1323.76,0.00046575,120]
[356522997,1742611834847,-536.96,0.00046575,120]
[356522998,1742611834857,-500.0,0.00046575,120]
[356522999,1742611834866,-500.0,0.00046575,120]
[356523000,1742611834875,-500.0,0.00046575,120]
[356523001,1742611834885,-500.0,0.00046575,120]
[356523002,1742611834895,-500.0,0.00046575,120]
[356523003,1742611834904,-500.0,0.00046575,120]
[356523004,1742611834913,-500.0,0.00046575,120]
[356523005,1742611834923,-500.0,0.00046575,120]
[356523006,1742611834932,-500.0,0.00046575,120]
[356523007,1742611834941,-500.0,0.00046575,120]
[356523008,1742611834950,-500.0,0.00046575,120]
[356523009,1742611834960,-500.0,0.00046575,120]
[356523010,1742611834971,-500.0,0.00046575,120]
[356523011,1742611834980,-505.30598685,0.00046575,120]
[356523012,1742611834990,-500.0,0.00046575,120]
[356523013,1742611834999,-500.0,0.00046575,120]
[356523014,1742611835009,-500.0,0.00046575,120]
[356523015,1742611835019,-500.0,0.00046575,120]
[356523016,1742611835029,-500.0,0.00046575,120]
[356523017,1742611835039,-691.27,0.00046575,120]
[356523018,1742611835048,-271.366056,0.00046575,120]
[356523019,1742611835058,-500.0,0.00046575,120]
[356523020,1742611835067,-1086.28,0.00046575,120]
[356523021,1742611835076,-500.0,0.00046575,120]
[356523022,1742611835085,-556.22015147,0.00046575,120]
[356523023,1742611835095,-500.0,0.00046575,120]
[356523024,1742611835104,-667.22,0.00046575,120]
[356523025,1742611835113,-500.0,0.00046575,120]
[356523026,1742611835122,-500.0,0.00046575,120]
[356523027,1742611835132,-276.76301924,0.00046575,120]
[356523028,1742611835141,-526.65594177,0.00046575,120]
[356523029,1742611835150,-289.29558592,0.00046575,120]
[356523030,1742611835160,-500.0,0.00046575,120]
[356523031,1742611835169,-500.0,0.00046575,120]
[356523032,1742611835179,-500.0,0.00046575,120]
[356523033,1742611835188,-500.0,0.00046575,120]
[356523034,1742611835196,-500.0,0.00046575,120]
[356523035,1742611835206,-500.0,0.00046575,120]
[356523036,1742611835216,-500.0,0.00046575,120]
[356523037,1742611835225,-507.97786559,0.00046575,120]
[356523038,1742611835234,-1002.7,0.00046575,120]
[356523039,1742611835244,-1444.83,0.00046575,120]
[356523040,1742611835254,-500.0,0.00046575,120]
[356523041,1742611835264,-500.0,0.00046575,120]
[356523042,1742611835274,-506.29980403,0.00046575,120]
[356523043,1742611835284,-253.23016454,0.00046575,120]
[356523044,1742611835293,-500.0,0.00046575,120]
[356523045,1742611835303,-500.0,0.00046575,120]
[356523046,1742611835312,-500.0,0.00046575,120]
[356523047,1742611835321,-500.0,0.00046575,120]
[356523048,1742611835330,-500.0,0.00046575,120]
[356523049,1742611835339,-500.0,0.00046575,120]
[356523050,1742611835348,-500.0,0.00046575,120]
[356523051,1742611835357,-500.0,0.00046575,120]
[356523052,1742611835366,-500.0,0.00046575,120]
[356523053,1742611835375,-500.0,0.00046575,120]
[356523054,1742611835384,-500.0,0.00046575,120]
[356523055,1742611835394,-500.0,0.00046575,120]
[356523056,1742611835404,-500.0,0.00046575,120]
[356523057,1742611835415,-550.23,0.00046575,120]
[356523058,1742611835425,-500.0,0.00046575,120]
[356523059,1742611835435,-500.0,0.00046575,120]
[356523060,1742611835445,-500.0,0.00046575,120]
[356523061,1742611835455,-500.0,0.00046575,120]
[356523062,1742611835465,-500.0,0.00046575,120]
[356523063,1742611835474,-503.60117045,0.00046575,120]
[356523064,1742611835484,-500.0,0.00046575,120]
[356523065,1742611835493,-505.50419583,0.00046575,120]
[356523066,1742611835503,-500.0,0.00046575,120]
[356523067,1742611835512,-500.0,0.00046575,120]
[356523068,1742611835521,-500.0,0.00046575,120]
[356523069,1742611835531,-500.0,0.00046575,120]
[356523070,1742611835540,-500.0,0.00046575,120]
[356523071,1742611835549,-500.0,0.00046575,120]
[356523072,1742611835559,-500.0,0.00046575,120]
[356523073,1742611835569,-600.22,0.00046575,120]
[356523074,1742611835578,-500.0,0.00046575,120]
[356523075,1742611835588,-546.10337901,0.00046575,120]
[356523076,1742611835597,-768.09,0.00046575,120]
[356523077,1742611835607,-500.0,0.00046575,120]
[356523078,1742611835616,-620.55,0.00046575,120]
[356523079,1742611835625,-500.0,0.00046575,120]
[356523080,1742611835638,-640.78685,0.00046575,120]
[356523081,1742611835647,-613.07,0.00046575,120]
[356523082,1742611835656,-533.11532598,0.00046575,120]
[356523083,1742611835666,-502.45391406,0.00046575,120]
[356523084,1742611835677,-665.01,0.00046575,120]
[356523085,1742611835685,-371.84499887,0.00046575,120]
[356523086,1742611835695,-500.0,0.00046575,120]
[356523087,1742611835704,-500.0,0.00046575,120]
[356523088,1742611835715,-521.749044,0.00046575,120]
[356523089,1742611835725,-771.78,0.00046575,120]
[356523090,1742611835735,-500.0,0.00046575,120]
[356523091,1742611835744,-611.90211619,0.00046575,120]
[356523092,1742611835753,-611.22,0.00046575,120]
[356523093,1742611835763,-577.96,0.00046575,120]
[356523094,1742611835772,-500.0,0.00046575,120]
[356523095,1742611835781,-515.20164076,0.00046575,30]
[356523096,1742611835790,-500.0,0.00046575,120]
[356523097,1742611835801,-500.0,0.00046575,120]
[356523098,1742611835810,-500.0,0.00046575,120]
[356523099,1742611835819,-500.0,0.00046575,120]
[356523100,1742611835828,-500.0,0.00046575,120]
[356523101,1742611835837,-2385.16,0.00046575,120]
[356523102,1742611835846,-500.0,0.00046575,120]
[356523103,1742611835856,-500.0,0.00046575,120]
[356523104,1742611835865,-500.0,0.00046575,120]
[356523105,1742611835875,-500.0,0.00046575,120]
[356523106,1742611835884,-500.0,0.00046575,120]
[356523107,1742611835893,-500.0,0.00046575,120]
[356523108,1742611835902,-515.30471624,0.00046575,120]
[356523109,1742611835911,-154.615083,0.00046575,120]
[356523110,1742611835920,-500.0,0.00046575,120]
[356523111,1742611835929,-500.0,0.00046575,120]
[356523112,1742611835938,-500.0,0.00046575,120]
[356523113,1742611835948,-524.21201096,0.00046575,120]
[356523114,1742611835957,-500.0,0.00046575,120]
[356523115,1742611835966,-1257.95,0.00046575,120]
[356523116,1742611835974,-500.0,0.00046575,120]
[356523117,1742611835983,-1050.75320932,0.00046575,120]
[356523118,1742611835993,-513.18236363,0.00046575,120]
[356523119,1742611836002,-500.0,0.00046575,120]
[356523120,1742611836011,-500.0,0.00046575,120]
[356523121,1742611836020,-533.7943806,0.00046575,120]
[356523122,1742611836029,-500.0,0.00046575,120]
[356523123,1742611836038,-500.0,0.00046575,120]
[356523124,1742611836048,-906.81,0.00046575,120]
[356523125,1742611836057,-500.0,0.00046575,120]
[356523126,1742611836067,-500.0,0.00046575,120]
[356523127,1742611836076,-500.0,0.00046575,120]
[356523128,1742611836086,-500.0,0.00046575,120]
[356523129,1742611836095,-505.88230888,0.00046575,120]
[356523130,1742611836107,-312.07076514,0.00046575,120]
[356523131,1742611836116,-500.0,0.00046575,120]
[356523132,1742611836125,-549.43502106,0.00046575,120]
[356523133,1742611836135,-1097.1,0.00046575,2]
[356523134,1742611836144,-177.418509,0.00046575,120]
[356523135,1742611836153,-572.84,0.00046575,120]
[356523136,1742611836163,-300.59831848,0.00046575,120]
[356523137,1742611836172,-500.0,0.00046575,120]
[356523138,1742611836181,-630.91,0.00046575,120]
[356523139,1742611836190,-500.0,0.00046575,120]
[356523140,1742611836200,-500.0,0.00046575,60]
[356523141,1742611836210,-500.0,0.00046575,120]
[356523142,1742611836219,-500.0,0.00046575,120]
[356523143,1742611836229,-500.0,0.00046575,120]
[356523144,1742611836238,-843.78,0.00046575,120]
[356523145,1742611836247,-500.0,0.00046575,120]
[356523146,1742611836256,-519.37021647,0.00046575,120]
[356523147,1742611836265,-500.0,0.00046575,120]
[356523148,1742611836274,-500.0,0.00046575,120]
[356523149,1742611836283,-900.29,0.00046575,120]
[356523150,1742611836292,-529.93,0.00046575,120]
[356523151,1742611836301,-1058.44,0.00046575,120]
[356523152,1742611836310,-979.29,0.00046575,120]
[356523153,1742611836319,-500.0,0.00046575,120]
[356523154,1742611836328,-500.0,0.00046575,120]
[356523155,1742611836337,-500.0,0.00046575,120]
[356523156,1742611836346,-500.0,0.00046575,120]
[356523157,1742611836355,-890.71,0.00046575,120]
[356523158,1742611836363,-500.0,0.00046575,120]
[356523159,1742611836373,-500.0,0.00046575,120]
[356523160,1742611836381,-500.0,0.00046575,120]
[356523161,1742611836390,-500.0,0.00046575,120]
[356523162,1742611836399,-683.66,0.00046575,120]
[356523163,1742611836408,-500.0,0.00046575,120]
[356523164,1742611836417,-500.0,0.00046575,120]
[356523165,1742611836425,-500.0,0.00046575,120]
[356523166,1742611836434,-1798.51,0.00046575,120]
[356523167,1742611836443,-517.261716,0.00046575,120]
[356523168,1742611836452,-502.56765382,0.00046575,120]
[356523169,1742611836461,-500.0,0.00046575,120]
[356523170,1742611836470,-500.0,0.00046575,12]
[356523171,1742611836479,-500.0,0.00046575,120]
[356523172,1742611836488,-500.0,0.00046575,120]
[356523173,1742611836497,-500.0,0.00046575,120]
[356523174,1742611836506,-500.0,0.00046575,120]
[356523175,1742611836515,-2572.28,0.00046575,120]
[356523176,1742611836524,-511.37,0.00046575,120]
[356523177,1742611836533,-500.0,0.00046575,120]
[356523178,1742611836542,-767.88,0.00046575,120]
[356523179,1742611836551,-500.0,0.00046575,120]
[356523180,1742611836560,-527.71763885,0.00046575,120]
[356523181,1742611836568,-500.0,0.00046575,120]
[356523182,1742611836578,-500.0,0.00046575,120]
[356523183,1742611836587,-500.0,0.00046575,120]
[356523184,1742611836596,-668.07,0.00046575,120]
[356523185,1742611836605,-500.0,0.00046575,120]
[356523186,1742611836614,-500.0,0.00046575,2]
[356523187,1742611836623,-271.366056,0.00046575,120]
[356523188,1742611836634,-500.0,0.00046575,120]
[356523189,1742611836643,-525.56242119,0.00046575,120]
[356523190,1742611836652,-500.0,0.00046575,120]
[356523191,1742611836661,-500.0,0.00046575,120]
[356523192,1742611836670,-500.0,0.00046575,120]
[356523193,1742611836681,-500.0,0.00046575,120]
[356523194,1742611836690,-500.0,0.00046575,120]
[356523195,1742611836699,-1307.92,0.00046575,120]
[356523196,1742611836710,-520.88731224,0.00046575,120]
[356523197,1742611836719,-500.0,0.00046575,120]
[356523198,1742611836730,-500.0,0.00046575,120]
[356523199,1742611836739,-519.27143686,0.00046575,120]
[356523200,1742611836748,-510.47,0.00046575,120]
[356523201,1742611836757,-500.0,0.00046575,120]
[356523202,1742611836767,-500.0,0.00046575,120]
[356523203,1742611836777,-829.44,0.00046575,120]
[356523204,1742611836788,-506.27431012,0.00046575,120]
[356523205,1742611836799,-1048.95,0.00046575,120]
[356523206,1742611836810,-500.0,0.00046575,120]
[356523207,1742611836820,-500.0,0.00046575,120]
[356523208,1742611836830,-954.33,0.00046575,120]
[356523209,1742611836840,-500.0,0.00046575,120]
[356523210,1742611836850,-500.0,0.00046575,120]
[356523211,1742611836860,-505.4884094,0.00046575,120]
[356523212,1742611836870,-500.0,0.00046575,120]
[356523213,1742611836879,-222.502464,0.00046575,120]
[356523214,1742611836888,-506.08,0.00046575,120]
[356523215,1742611836898,-521.86630255,0.00046575,120]
[356523216,1742611836907,-539.76065798,0.00046575,120]
[356523217,1742611836916,-500.0,0.00046575,120]
[356523218,1742611836925,-500.0,0.00046575,120]
[356523219,1742611836933,-500.0,0.00046575,120]
[356523220,1742611836943,-500.0,0.00046575,120]
[356523221,1742611836952,-500.0,0.00046575,120]
[356523222,1742611836961,-500.0,0.00046575,120]
[356523223,1742611836970,-500.0,0.00046575,120]
[356523224,1742611836979,-500.0,0.00046575,120]
[356523225,1742611836988,-500.0,0.00046575,120]
[356523226,1742611836998,-500.0,0.00046575,120]
[356523227,1742611837008,-500.0,0.00046575,120]
[356523228,1742611837017,-500.0,0.00046575,120]
[356523229,1742611837026,-675.22,0.00046575,120]
[356523230,1742611837035,-2676.07,0.00046575,120]
[356523231,1742611837044,-503.39832266,0.00046575,120]
[356523232,1742611837053,-959.43,0.00046575,120]
[356523233,1742611837063,-500.0,0.00046575,120]
[356523234,1742611837072,-317.32395161,0.00046575,120]
[356523235,1742611837081,-500.0,0.00046575,120]
[356523236,1742611837090,-510.19464221,0.00046575,120]
[356523237,1742611837099,-520.12113971,0.00046575,120]
[356523238,1742611837107,-500.0,0.00046575,120]
[356523239,1742611837116,-500.0,0.00046575,120]
[356523240,1742611837126,-500.0,0.00046575,120]
[356523241,1742611837135,-500.0,0.00046575,120]
[356523243,1742611837143,-500.0,0.00046575,120]
[356523244,1742611837153,-651.92,0.00046575,120]
[356523245,1742611837162,-501.15627534,0.00046575,120]
[356523246,1742611837171,-502.4951283,0.00046575,120]
[356523247,1742611837180,-518.18706342,0.00046575,120]
[356523248,1742611837189,-500.0,0.00046575,120]
[356523250,1742611837199,-500.0,0.00046575,120]
[356523251,1742611837208,-500.0,0.00046575,120]
[356523252,1742611837216,-500.0,0.00046575,120]
[356523253,1742611837225,-500.0,0.00046575,120]
[356523254,1742611837234,-500.0,0.00046575,120]
[356523255,1742611837243,-500.0,0.00046575,120]
[356523256,1742611837252,-500.0,0.00046575,30]
[356523257,1742611837261,-500.0,0.00046575,120]
[356523258,1742611837270,-307.11815942,0.00046575,120]
[356523259,1742611837279,-500.0,0.00046575,120]
[356523260,1742611837290,-500.0,0.00046575,120]
[356523261,1742611837299,-500.0,0.00046575,120]
[356523262,1742611837308,-500.0,0.00046575,120]
[356523263,1742611837317,-500.0,0.00046575,120]
[356523264,1742611837326,-2903.24,0.00046575,120]
[356523265,1742611837336,-509.88436697,0.00046575,120]
[356523266,1742611837345,-500.0,0.00046575,120]
[356523267,1742611837354,-500.0,0.00046575,120]
[356523268,1742611837363,-500.0,0.00046575,120]
[356523269,1742611837372,-583.4,0.00046575,120]
[356523270,1742611837381,-500.0,0.00046575,120]
[356523271,1742611837389,-500.0,0.00046575,30]
[356523272,1742611837399,-500.0,0.00046575,120]
[356523273,1742611837408,-500.0,0.00046575,120]
[356523274,1742611837417,-1012.44,0.00046575,120]
[356523275,1742611837426,-500.0,0.00046575,120]
[356523276,1742611837435,-500.0,0.00046575,120]
[356523277,1742611837444,-500.0,0.00046575,120]
[356523278,1742611837453,-1541.07,0.00046575,7]
[356523279,1742611837463,-500.0,0.00046575,120]
[356523280,1742611837472,-500.0,0.00046575,120]
[356523281,1742611837483,-500.0,0.00046575,120]
[356523282,1742611837491,-500.0,0.00046575,120]
[356523283,1742611837500,-500.0,0.00046575,120]
[356523284,1742611837509,-500.0,0.00046575,120]
[356523285,1742611837519,-500.0,0.00046575,120]
[356523286,1742611837528,-500.0,0.00046575,120]
[356523287,1742611837537,-500.0,0.00046575,120]
[356523288,1742611837546,-598.31,0.00046575,120]
[356523289,1742611837555,-500.0,0.00046575,120]
[356523290,1742611837564,-400.51293992,0.00046575,120]
[356523291,1742611837573,-500.0,0.00046575,120]
[356523292,1742611837582,-988.34,0.00046575,120]
[356523293,1742611837591,-500.0,0.00046575,120]
[356523294,1742611837600,-508.21748487,0.00046575,120]
[356523295,1742611837609,-531.66,0.00046575,120]
[356523296,1742611837617,-500.0,0.00046575,120]
[356523297,1742611837627,-996.37,0.00046575,120]
[356523298,1742611837639,-500.0,0.00046575,120]
[356523299,1742611837648,-500.0,0.00046575,120]
[356523302,1742611837847,-829.62,0.00046575,120]
[356523303,1742611837857,-500.0,0.00046575,120]
[356523304,1742611837867,-500.0,0.00046575,120]
[356523305,1742611837877,-500.0,0.00046575,120]
[356523306,1742611837887,-522.24504384,0.00046575,120]
[356523307,1742611837896,-500.0,0.00046575,120]
[356523308,1742611837906,-500.0,0.00046575,120]
[356523309,1742611837916,-500.0,0.00046575,120]
[356523310,1742611837926,-500.0,0.00046575,120]
[356523311,1742611837936,-500.0,0.00046575,120]
[356523312,1742611837946,-540.9,0.00046575,120]
[356523313,1742611837955,-1237.27,0.00046575,120]
[356523314,1742611837965,-500.0,0.00046575,120]
[356523315,1742611837974,-500.0,0.00046575,120]
[356523316,1742611837984,-500.0,0.00046575,120]
[356523317,1742611837995,-1901.45,0.00046575,120]
[356523318,1742611838005,-500.0,0.00046575,120]
[356523319,1742611838015,-1901.45,0.00046575,120]
[356523320,1742611838024,-1901.45,0.00046575,120]
[356523321,1742611838033,-1901.45,0.00046575,120]
[356523322,1742611838043,-1901.45,0.00046575,120]
[356523323,1742611838052,-500.0,0.00046575,120]
[356523324,1742611838062,-1901.45,0.00046575,120]
[356523325,1742611838071,-500.0,0.00046575,120]
[356523326,1742611838081,-500.0,0.00046575,120]
[356523327,1742611838090,-571.77,0.00046575,120]
[356523328,1742611838099,-1188.07,0.00046575,120]
[356523329,1742611838108,-1166.84,0.00046575,120]
[356523330,1742611838118,-840.25,0.00046575,120]
[356523331,1742611838127,-609.82,0.00046575,120]
[356523332,1742611838136,-500.0,0.00046575,120]
[356523333,1742611838145,-500.71821412,0.00046575,120]
[356523334,1742611838154,-500.0,0.00046575,120]
[356523335,1742611838163,-500.0,0.00046575,120]
[356523336,1742611838173,-546.00021837,0.00046575,120]
[356523337,1742611838182,-520.97952341,0.00046575,120]
[356523338,1742611838191,-500.0,0.00046575,120]
[356523339,1742611838200,-800.08,0.00046575,120]
[356523340,1742611838210,-1014.78,0.00046575,120]
[356523341,1742611838219,-500.0,0.00046575,120]
[356523342,1742611838228,-672.78,0.00046575,120]
[356523343,1742611838237,-500.0,0.00046575,120]
[356523344,1742611838247,-1087.82,0.00046575,120]
[356523345,1742611838256,-500.0,0.00046575,120]
[356523346,1742611838265,-500.0,0.00046575,120]
[356523347,1742611838275,-500.0,0.00046575,120]
[356523348,1742611838285,-500.0,0.00046575,120]
[356523349,1742611838294,-666.0,0.00046575,120]
[356523350,1742611838303,-666.0,0.00046575,120]
[356523351,1742611838312,-666.0,0.00046575,120]
[356523352,1742611838323,-666.0,0.00046575,120]
[356523353,1742611838332,-666.0,0.00046575,120]
[356523354,1742611838342,-666.0,0.00046575,120]
[356523355,1742611838351,-666.0,0.00046575,120]
[356523356,1742611838360,-666.0,0.00046575,120]
[356523357,1742611838370,-666.0,0.00046575,120]
[356523358,1742611838379,-500.0,0.00046575,120]
[356523359,1742611838388,-666.0,0.00046575,120]
[356523360,1742611838397,-666.0,0.00046575,120]
[356523361,1742611838406,-500.0,0.00046575,120]
[356523362,1742611838416,-666.0,0.00046575,120]
[356523363,1742611838425,-537.33,0.00046575,120]
[356523364,1742611838434,-666.0,0.00046575,120]
[356523365,1742611838444,-666.0,0.00046575,120]
[356523366,1742611838453,-592.25,0.00046575,120]
[356523367,1742611838462,-666.0,0.00046575,120]
[356523368,1742611838471,-666.0,0.00046575,120]
[356523369,1742611838481,-666.0,0.00046575,120]
[356523370,1742611838491,-666.0,0.00046575,120]
[356523371,1742611838500,-500.0,0.00046575,120]
[356523372,1742611838510,-666.0,0.00046575,120]
[356523373,1742611838519,-666.0,0.00046575,120]
[356523374,1742611838528,-666.0,0.00046575,120]
[356523375,1742611838538,-500.0,0.00046575,120]
[356523376,1742611838548,-666.0,0.00046575,120]
[356523377,1742611838557,-500.0,0.00046575,120]
[356523378,1742611838566,-666.0,0.00046575,120]
[356523379,1742611838576,-555.70587688,0.00046575,120]
[356523380,1742611838585,-544.08256958,0.00046575,120]
[356523381,1742611838595,-527.9,0.00046575,120]
[356523382,1742611838605,-506.83509713,0.00046575,120]
[356523383,1742611838614,-642.24645055,0.00046575,120]
[356523384,1742611838624,-500.0,0.00046575,120]
[356523385,1742611838635,-500.0,0.00046575,120]
[356523386,1742611838645,-500.0,0.00046575,120]
[356523387,1742611838654,-500.0,0.00046575,120]
[356523388,1742611838663,-500.0,0.00046575,120]
[356523389,1742611838673,-659.25,0.00046575,120]
[356523390,1742611838682,-500.0,0.00046575,120]
[356523391,1742611838693,-1015.43,0.00046575,120]
[356523392,1742611838702,-791.65,0.00046575,120]
[356523393,1742611838712,-2002.41,0.00046575,120]
[356523394,1742611838721,-500.0,0.00046575,120]
[356523395,1742611838731,-500.0,0.00046575,120]
[356523396,1742611838740,-526.74,0.00046575,120]
[356523397,1742611838750,-500.0,0.00046575,120]
[356523398,1742611838759,-500.0,0.00046575,120]
[356523399,1742611838769,-500.0,0.00046575,120]
[356523400,1742611838778,-500.0,0.00046575,120]
[356523401,1742611838787,-500.0,0.00046575,120]
[356523402,1742611838797,-500.0,0.00046575,120]
[356523403,1742611838807,-870.18,0.00046575,120]
[356523404,1742611838816,-500.0,0.00046575,120]
[356523405,1742611838825,-820.62,0.00046575,120]
[356523406,1742611838834,-500.0,0.00046575,120]
[356523407,1742611838843,-523.95,0.00046575,120]
[356523408,1742611838853,-629.92207829,0.00046575,120]
[356523409,1742611838862,-500.0,0.00046575,120]
[356523410,1742611838871,-500.0,0.00046575,120]
[356523411,1742611838880,-506.90259472,0.00046575,120]
[356523412,1742611838889,-1404.38,0.00046575,120]
[356523413,1742611838898,-500.0,0.00046575,120]
[356523414,1742611838907,-500.0,0.00046575,120]
[356523415,1742611838916,-500.0,0.00046575,120]
[356523416,1742611838925,-500.0,0.00046575,120]
[356523417,1742611838934,-500.0,0.00046575,120]
[356523418,1742611838943,-517.29752519,0.00046575,120]
[356523419,1742611838953,-1059.2,0.00046575,120]
[356523420,1742611838962,-628.37970322,0.00046575,120]
[356523421,1742611838971,-500.0,0.00046575,120]
[356523422,1742611838980,-500.0,0.00046575,120]
[356523423,1742611838990,-521.28,0.00046575,120]
[356523424,1742611839000,-500.0,0.00046575,120]
[356523425,1742611839009,-500.0,0.00046575,120]
[356523426,1742611839019,-565.34,0.00046575,120]
[356523427,1742611839028,-554.28,0.00046575,120]
[356523428,1742611839037,-500.0,0.00046575,120]
[356523429,1742611839046,-929.87,0.00046575,120]
[356523430,1742611839055,-195.0490638,0.00046575,120]
[356523431,1742611839065,-500.0,0.00046575,120]
[356523432,1742611839073,-500.0,0.00046575,120]
[356523433,1742611839082,-500.0,0.00046575,120]
[356523434,1742611839091,-500.0,0.00046575,120]
[356523435,1742611839101,-563.76,0.00046575,120]
[356523436,1742611839111,-500.0,0.00046575,120]
[356523437,1742611839121,-500.0,0.00046575,120]
[356523438,1742611839131,-760.23,0.00046575,120]
[356523439,1742611839140,-500.0,0.00046575,120]
[356523440,1742611839149,-507.98376128,0.00046575,120]
[356523441,1742611839159,-500.0,0.00046575,120]
[356523442,1742611839168,-500.0,0.00046575,120]
[356523443,1742611839179,-500.0,0.00046575,120]
[356523444,1742611839189,-500.0,0.00046575,120]
[356523445,1742611839198,-500.0,0.00046575,120]
[356523446,1742611839207,-500.0,0.00046575,120]
[356523447,1742611839217,-500.0,0.00046575,120]
[356523448,1742611839226,-500.0,0.00046575,120]
[356523449,1742611839235,-500.0,0.00046575,120]
[356523450,1742611839245,-500.0,0.00046575,120]
[356523451,1742611839254,-500.0,0.00046575,120]
[356523452,1742611839263,-510.08821174,0.00046575,120]
[356523453,1742611839272,-538.52,0.00046575,120]
[356523454,1742611839281,-500.0,0.00046575,120]
[356523455,1742611839291,-500.0,0.00046575,120]
[356523456,1742611839300,-500.0,0.00046575,120]
[356523457,1742611839310,-789.08,0.00046575,120]
[356523458,1742611839319,-500.0,0.00046575,120]
[356523459,1742611839329,-500.0,0.00046575,120]
[356523460,1742611839338,-560.83301376,0.00046575,120]
[356523461,1742611839348,-500.0,0.00046575,120]
[356523462,1742611839357,-1282.78,0.00046575,120]
[356523463,1742611839367,-500.0,0.00046575,120]
[356523464,1742611839377,-500.0,0.00046575,120]
[356523465,1742611839387,-500.0,0.00046575,120]
[356523466,1742611839396,-500.0,0.00046575,120]
[356523467,1742611839405,-500.0,0.00046575,120]
[356523468,1742611839414,-500.0,0.00046575,120]
[356523469,1742611839424,-553.12,0.00046575,120]
[356523470,1742611839433,-500.0,0.00046575,120]
[356523471,1742611839443,-500.0,0.00046575,120]
[356523472,1742611839452,-500.0,0.00046575,120]
[356523473,1742611839462,-500.0,0.00046575,120]
[356523474,1742611839471,-1007.19,0.00046575,120]
[356523475,1742611839480,-159.51189874,0.00046575,120]
[356523476,1742611839489,-500.0,0.00046575,120]
[356523477,1742611839499,-500.0,0.00046575,120]
[356523478,1742611839508,-500.0,0.00046575,120]
[356523479,1742611839517,-500.0,0.00046575,120]
[356523480,1742611839526,-500.0,0.00046575,120]
[356523481,1742611839535,-671.81,0.00046575,120]